[Event "Masterklassen-Elit 2025"]
[Site "Uppsala, Sweden"]
[Date "2025.06.28"]
[Round "1.5"]
[White "Olsson, William"]
[Black "Lindberg, Bengt"]
[Result "1/2-1/2"]
[TimeControl "90 min for 40 move + 30 min with an increment of 30 sec starting move 1"]
[WhiteTitle "IM"]
[BlackTitle "IM"]
[WhiteFideId "1741721"]
[BlackFideId "1700359"]
[WhiteElo "2365"]
[BlackElo "2334"]

1. c4 {[%clk 01:30:58]} {[%emt 00:00:02]} e6 {[%clk 01:30:46]} {[%emt
00:00:14]} 2. Nf3 {[%clk 01:31:05]} {[%emt 00:00:23]} Nf6 {[%clk 01:31:06]}
{[%emt 00:00:11]} 3. g3 {[%clk 01:31:13]} {[%emt 00:00:22]} d5 {[%clk
01:31:27]} {[%emt 00:00:09]} 4. Bg2 {[%clk 01:31:30]} {[%emt 00:00:13]} Be7
{[%clk 01:31:43]} {[%emt 00:00:13]} 5. O-O {[%clk 01:31:38]} {[%emt 00:00:22]}
O-O {[%clk 01:32:02]} {[%emt 00:00:10]} 6. d4 {[%clk 01:31:15]} {[%emt
00:00:55]} Ne4 {[%clk 01:32:17]} {[%emt 00:00:15]} 7. Qc2 {[%clk 01:26:34]}
{[%emt 00:05:11]} f5 {[%clk 01:30:39]} {[%emt 00:02:07]} 8. Bf4 {[%clk
01:25:56]} {[%emt 00:01:09]} c6 {[%clk 01:30:21]} {[%emt 00:00:47]} 9. b3
{[%clk 01:20:40]} {[%emt 00:05:46]} Bd7 {[%clk 01:21:48]} {[%emt 00:09:02]} 10.
Ne5 {[%clk 01:12:36]} {[%emt 00:08:36]} Be8 {[%clk 01:16:39]} {[%emt 00:05:38]}
11. Rd1 {[%clk 01:07:07]} {[%emt 00:05:59]} Nd7 {[%clk 01:06:30]} {[%emt
00:10:38]} 12. Nd2 {[%clk 00:56:01]} {[%emt 00:11:37]} Nxe5 {[%clk 00:56:14]}
{[%emt 00:10:46]} 13. Bxe5 {[%clk 00:54:39]} {[%emt 00:01:53]} Nd6 {[%clk
00:54:07]} {[%emt 00:02:36]} 14. Bxd6 {[%clk 00:47:31]} {[%emt 00:07:38]} Bxd6
{[%clk 00:53:30]} {[%emt 00:01:07]} 15. c5 {[%clk 00:47:58]} {[%emt 00:00:04]}
Bc7 {[%clk 00:52:06]} {[%emt 00:01:53]} 16. f4 {[%clk 00:47:53]} {[%emt
00:00:36]} g5 {[%clk 00:46:07]} {[%emt 00:06:29]} 17. e3 {[%clk 00:47:43]}
{[%emt 00:00:40]} b5 {[%clk 00:37:51]} {[%emt 00:08:46]} 18. b4 {[%clk
00:38:53]} {[%emt 00:09:21]} a5 {[%clk 00:30:39]} {[%emt 00:07:41]} 19. a4
{[%clk 00:32:16]} {[%emt 00:07:07]} bxa4 {[%clk 00:28:39]} {[%emt 00:02:30]} 20.
Qxa4 {[%clk 00:30:46]} {[%emt 00:02:01]} Bd7 {[%clk 00:27:01]} {[%emt
00:02:07]} 21. bxa5 {[%clk 00:29:50]} {[%emt 00:01:27]} Bxa5 {[%clk 00:23:20]}
{[%emt 00:04:10]} 22. Qc2 {[%clk 00:30:06]} {[%emt 00:00:15]} g4 {[%clk
00:21:48]} {[%emt 00:02:01]} 23. Nb3 {[%clk 00:27:48]} {[%emt 00:02:48]} Bc7
{[%clk 00:22:11]} {[%emt 00:00:08]} 24. Bf1 {[%clk 00:26:56]} {[%emt 00:01:22]}
Qe7 {[%clk 00:20:47]} {[%emt 00:01:52]} 25. Ra2 {[%clk 00:22:46]} {[%emt
00:04:42]} Rfb8 {[%clk 00:17:17]} {[%emt 00:04:00]} 26. Rda1 {[%clk 00:23:04]}
{[%emt 00:00:12]} Qd8 {[%clk 00:17:41]} {[%emt 00:00:05]} 27. Nc1 {[%clk
00:22:53]} {[%emt 00:00:41]} Rxa2 {[%clk 00:16:34]} {[%emt 00:01:37]} 28. Qxa2
{[%clk 00:22:36]} {[%emt 00:00:47]} Rb7 {[%clk 00:13:59]} {[%emt 00:03:05]} 29.
Nd3 {[%clk 00:20:13]} {[%emt 00:02:52]} Qb8 {[%clk 00:10:29]} {[%emt 00:04:01]}
30. Qa8 {[%clk 00:16:51]} {[%emt 00:03:53]} Kf7 {[%clk 00:08:45]} {[%emt
00:02:13]} 31. Kf2 {[%clk 00:15:52]} {[%emt 00:01:29]} Ke7 {[%clk 00:07:07]}
{[%emt 00:02:07]} 32. Qa2 {[%clk 00:13:53]} {[%emt 00:02:30]} Rb3 {[%clk
00:06:31]} {[%emt 00:01:05]} 33. Be2 {[%clk 00:13:55]} {[%emt 00:00:28]} Be8
{[%clk 00:05:43]} {[%emt 00:01:17]} 34. Qc2 {[%clk 00:12:11]} {[%emt 00:02:15]}
Rb7 {[%clk 00:04:53]} {[%emt 00:01:19]} 35. Qa4 {[%clk 00:12:04]} {[%emt
00:00:37]} h5 {[%clk 00:03:36]} {[%emt 00:01:48]} 36. Qa6 {[%clk 00:07:29]}
{[%emt 00:05:05]} Rb3 {[%clk 00:02:20]} {[%emt 00:01:44]} 37. Qa2 {[%clk
00:07:29]} {[%emt 00:00:32]} Rb7 {[%clk 00:02:34]} {[%emt 00:00:16]} 38. Qa3
{[%clk 00:07:34]} {[%emt 00:00:25]} Rb3 {[%clk 00:02:43]} {[%emt 00:00:21]} 39.
Qc1 {[%clk 00:07:55]} {[%emt 00:00:10]} Rb7 {[%clk 00:02:56]} {[%emt 00:00:17]}
40. Bd1 {[%clk 00:04:54]} {[%emt 00:03:31]} Ra7 {[%clk 00:02:20]} {[%emt
00:01:06]} 41. Ra4 {[%clk 00:03:53]} {[%emt 00:01:31]} Rxa4 {[%clk 00:23:04]}
{[%emt 00:09:46]} 42. Bxa4 {[%clk 00:34:21]} {[%emt 00:00:02]} Qa8 {[%clk
00:23:24]} {[%emt 00:00:09]} 43. Qa3 {[%clk 00:34:16]} {[%emt 00:00:35]} Bd7
{[%clk 00:22:54]} {[%emt 00:01:00]} 44. Qb4 {[%clk 00:31:34]} {[%emt 00:03:13]}
Qa6 {[%clk 00:21:45]} {[%emt 00:01:38]} 45. Qb3 {[%clk 00:31:23]} {[%emt
00:00:41]} Qa8 {[%clk 00:21:35]} {[%emt 00:00:40]} 46. Qb4 {[%clk 00:30:37]}
{[%emt 00:01:17]} Qa6 {[%clk 00:21:54]} {[%emt 00:00:10]} 47. Bc2 {[%clk
00:29:31]} {[%emt 00:01:37]} Qa8 {[%clk 00:19:53]} {[%emt 00:02:31]} 48. Qa4
{[%clk 00:28:07]} {[%emt 00:01:54]} Qb7 {[%clk 00:20:04]} {[%emt 00:00:18]} 49.
Nb4 {[%clk 00:26:24]} {[%emt 00:02:13]} Bd8 {[%clk 00:20:06]} {[%emt 00:00:27]}
50. Bd3 {[%clk 00:25:27]} {[%emt 00:01:28]} Bc7 {[%clk 00:20:27]} {[%emt
00:00:08]} 51. Ke2 {[%clk 00:23:12]} {[%emt 00:02:47]} Bd8 {[%clk 00:17:11]}
{[%emt 00:03:45]} 52. Kd2 {[%clk 00:23:15]} {[%emt 00:00:27]} Ke8 {[%clk
00:15:00]} {[%emt 00:02:41]} 53. Kc3 {[%clk 00:21:57]} {[%emt 00:01:48]} h4
{[%clk 00:14:41]} {[%emt 00:00:50]} 54. Kb3 {[%clk 00:18:54]} {[%emt 00:03:32]}
h3 {[%clk 00:13:21]} {[%emt 00:01:51]} 55. Bf1 {[%clk 00:15:15]} {[%emt
00:04:08]} Qc7 {[%clk 00:11:24]} {[%emt 00:02:27]} 56. Ba6 {[%clk 00:13:13]}
{[%emt 00:02:33]} Qb8 {[%clk 00:09:29]} {[%emt 00:02:23]} 57. Be2 {[%clk
00:11:30]} {[%emt 00:02:13]} Qb7 {[%clk 00:09:10]} {[%emt 00:00:49]} 58. Bf1
{[%clk 00:11:22]} {[%emt 00:00:38]} Ke7 {[%clk 00:09:04]} {[%emt 00:00:36]} 59.
Bd3 {[%clk 00:08:22]} {[%emt 00:03:31]} Ke8 {[%clk 00:09:22]} {[%emt 00:00:11]}
60. Ka3 {[%clk 00:08:43]} {[%emt 00:00:10]} Ke7 {[%clk 00:09:19]} {[%emt
00:00:32]} 61. Be2 {[%clk 00:08:10]} {[%emt 00:01:04]} Ke8 {[%clk 00:09:39]}
{[%emt 00:00:10]} 62. Ba6 {[%clk 00:08:10]} {[%emt 00:00:31]} Qc7 {[%clk
00:08:05]} {[%emt 00:02:03]} 63. Kb3 {[%clk 00:07:04]} {[%emt 00:01:36]} Qb8
{[%clk 00:08:20]} {[%emt 00:00:14]} 64. Kc2 {[%clk 00:06:00]} {[%emt 00:01:35]}
Qc7 {[%clk 00:08:09]} {[%emt 00:00:41]} 65. Be2 {[%clk 00:04:44]} {[%emt
00:01:46]} Qa5 {[%clk 00:07:53]} {[%emt 00:00:45]} 66. Kb3 {[%clk 00:05:04]}
{[%emt 00:00:11]} Qc7 {[%clk 00:08:18]} {[%emt 00:00:04]} 67. Ba6 {[%clk
00:02:24]} {[%emt 00:03:10]} Qb8 {[%clk 00:08:39]} {[%emt 00:00:08]} 68. Ka2
{[%clk 00:02:49]} {[%emt 00:00:06]} Qc7 {[%clk 00:09:04]} {[%emt 00:00:05]} 69.
Ka3 {[%clk 00:02:45]} {[%emt 00:00:34]} Ke7 {[%clk 00:09:03]} {[%emt 00:00:30]}
70. Be2 {[%clk 00:02:50]} {[%emt 00:00:25]} Ke8 {[%clk 00:08:47]} {[%emt
00:00:47]} 71. Bd1 {[%clk 00:02:55]} {[%emt 00:00:24]} Qa5 {[%clk 00:08:15]}
{[%emt 00:01:03]} 72. Kb3 {[%clk 00:03:02]} {[%emt 00:00:23]} Qc7 {[%clk
00:08:32]} {[%emt 00:00:12]} 73. Nd3 {[%clk 00:02:55]} {[%emt 00:00:36]} Qa5
{[%clk 00:08:33]} {[%emt 00:00:29]} 74. Nb4 {[%clk 00:02:18]} {[%emt 00:01:07]}
Qc7 {[%clk 00:08:33]} {[%emt 00:00:30]} 75. Kc2 {[%clk 00:02:08]} {[%emt
00:00:41]} Qb7 {[%clk 00:07:40]} {[%emt 00:01:23]} 76. Kd3 {[%clk 00:02:26]}
{[%emt 00:00:13]} Bc7 {[%clk 00:07:29]} {[%emt 00:00:40]} 77. Kc2 {[%clk
00:02:13]} {[%emt 00:00:43]} Bd8 {[%clk 00:07:45]} {[%emt 00:00:13]} 78. Be2
{[%clk 00:02:37]} {[%emt 00:00:07]} Qc7 {[%clk 00:08:01]} {[%emt 00:00:14]} 79.
Bd1 {[%clk 00:01:20]} {[%emt 00:01:47]} Qa5 {[%clk 00:08:16]} {[%emt 00:00:14]}
80. Kd3 {[%clk 00:01:12]} {[%emt 00:00:40]} Qxa4 {[%clk 00:06:04]} {[%emt
00:02:41]} 81. Bxa4 {[%clk 00:01:37]} {[%emt 00:00:05]} Ba5 {[%clk 00:06:27]}
{[%emt 00:00:06]} 82. Kc3 {[%clk 00:01:50]} {[%emt 00:00:18]} 1/2-1/2

[Event "Masterklassen-Elit 2025"]
[Site "Uppsala, Sweden"]
[Date "2025.06.29"]
[Round "2.1"]
[White "Landgren, Andreas"]
[Black "Andersson, Tommy"]
[Result "0-1"]
[TimeControl "90 min for 40 move + 30 min with an increment of 30 sec starting move 1"]
[WhiteTitle "FM"]
[BlackTitle "IM"]
[WhiteFideId "1704311"]
[BlackFideId "1703803"]
[WhiteElo "2261"]
[BlackElo "2348"]

1. d4 {[%clk 01:30:57]} {[%emt 00:00:03]} d5 {[%clk 01:30:52]} {[%emt
00:00:08]} 2. c4 {[%clk 01:31:22]} {[%emt 00:00:06]} dxc4 {[%clk 01:31:16]}
{[%emt 00:00:05]} 3. e3 {[%clk 01:31:41]} {[%emt 00:00:11]} Nf6 {[%clk
01:31:38]} {[%emt 00:00:07]} 4. Bxc4 {[%clk 01:32:01]} {[%emt 00:00:11]} g6
{[%clk 01:32:02]} {[%emt 00:00:06]} 5. Nf3 {[%clk 01:13:34]} {[%emt 00:18:58]}
Bg7 {[%clk 01:32:23]} {[%emt 00:00:08]} 6. O-O {[%clk 01:13:54]} {[%emt
00:00:10]} O-O {[%clk 01:32:32]} {[%emt 00:00:21]} 7. Nc3 {[%clk 01:13:47]}
{[%emt 00:00:37]} a6 {[%clk 01:32:29]} {[%emt 00:00:33]} 8. a4 {[%clk
01:11:15]} {[%emt 00:03:02]} c5 {[%clk 01:30:27]} {[%emt 00:02:32]} 9. d5
{[%clk 01:04:08]} {[%emt 00:07:37]} Bg4 {[%clk 01:29:37]} {[%emt 00:01:20]} 10.
h3 {[%clk 01:00:17]} {[%emt 00:04:21]} Bxf3 {[%clk 01:29:58]} {[%emt 00:00:08]}
11. Qxf3 {[%clk 01:00:36]} {[%emt 00:00:12]} Nbd7 {[%clk 01:29:51]} {[%emt
00:00:37]} 12. Qe2 {[%clk 00:59:01]} {[%emt 00:02:05]} Ne8 {[%clk 01:27:05]}
{[%emt 00:03:16]} 13. e4 {[%clk 00:54:17]} {[%emt 00:05:13]} Nd6 {[%clk
01:26:44]} {[%emt 00:00:51]} 14. Ba2 {[%clk 00:53:33]} {[%emt 00:01:15]} b5
{[%clk 01:24:02]} {[%emt 00:03:13]} 15. axb5 {[%clk 00:50:27]} {[%emt
00:03:36]} axb5 {[%clk 01:22:38]} {[%emt 00:01:53]} 16. Nxb5 {[%clk 00:30:45]}
{[%emt 00:20:12]} Qb6 {[%clk 01:10:30]} {[%emt 00:12:37]} 17. Nc3 {[%clk
00:31:03]} {[%emt 00:00:13]} Rfb8 {[%clk 01:06:46]} {[%emt 00:04:14]} 18. Re1
{[%clk 00:25:39]} {[%emt 00:05:54]} c4 {[%clk 00:45:41]} {[%emt 00:21:35]} 19.
Qc2 {[%clk 00:22:50]} {[%emt 00:03:19]} Ne5 {[%clk 00:42:46]} {[%emt 00:03:25]}
20. Re2 {[%clk 00:19:51]} {[%emt 00:03:29]} Nd3 {[%clk 00:41:43]} {[%emt
00:01:33]} 21. Nd1 {[%clk 00:08:59]} {[%emt 00:11:22]} Nb4 {[%clk 00:33:40]}
{[%emt 00:08:33]} 22. Qb1 {[%clk 00:09:22]} {[%emt 00:00:07]} Qd4 {[%clk
00:32:47]} {[%emt 00:01:23]} 23. Nc3 {[%clk 00:05:06]} {[%emt 00:04:47]} Nb5
{[%clk 00:24:45]} {[%emt 00:08:31]} 24. Bf4 {[%clk 00:04:05]} {[%emt 00:01:31]}
Nxc3 {[%clk 00:16:20]} {[%emt 00:08:55]} 25. bxc3 {[%clk 00:04:33]} {[%emt
00:00:01]} Qxc3 {[%clk 00:16:41]} {[%emt 00:00:09]} 26. e5 {[%clk 00:01:56]}
{[%emt 00:03:07]} Nd3 {[%clk 00:15:09]} {[%emt 00:02:01]} 27. Qd1 {[%clk
00:00:44]} {[%emt 00:01:44]} Nxf4 {[%clk 00:14:39]} {[%emt 00:01:00]} 28. Re4
{[%clk 00:00:57]} {[%emt 00:00:17]} Nd3 {[%clk 00:11:24]} {[%emt 00:03:44]} 29.
Rxc4 {[%clk 00:01:08]} {[%emt 00:00:19]} Qxe5 {[%clk 00:11:04]} {[%emt
00:00:50]} 0-1

[Event "Masterklassen-Elit 2025"]
[Site "Uppsala, Sweden"]
[Date "2025.06.29"]
[Round "2.2"]
[White "Carlsson, Ludvig"]
[Black "Strom-Engdahl, Alexander"]
[Result "1-0"]
[TimeControl "90 min for 40 move + 30 min with an increment of 30 sec starting move 1"]
[WhiteTitle "IM"]
[BlackTitle "FM"]
[WhiteFideId "1727010"]
[BlackFideId "1741586"]
[WhiteElo "2379"]
[BlackElo "2320"]

1. Nf3 {[%clk 01:30:55]} {[%emt 00:00:03]} d5 {[%clk 01:29:39]} {[%emt
00:01:21]} 2. d4 {[%clk 01:31:14]} {[%emt 00:00:10]} Nf6 {[%clk 01:29:53]}
{[%emt 00:00:18]} 3. c4 {[%clk 01:31:33]} {[%emt 00:00:10]} c6 {[%clk
01:30:19]} {[%emt 00:00:04]} 4. e3 {[%clk 01:31:51]} {[%emt 00:00:12]} Bf5
{[%clk 01:29:58]} {[%emt 00:00:52]} 5. Bd3 {[%clk 01:32:03]} {[%emt 00:00:16]}
Bxd3 {[%clk 01:29:53]} {[%emt 00:00:36]} 6. Qxd3 {[%clk 01:32:24]} {[%emt
00:00:09]} e6 {[%clk 01:30:19]} {[%emt 00:00:04]} 7. O-O {[%clk 01:32:40]}
{[%emt 00:00:14]} Be7 {[%clk 01:29:40]} {[%emt 00:01:09]} 8. Nbd2 {[%clk
01:32:59]} {[%emt 00:00:10]} Nbd7 {[%clk 01:28:21]} {[%emt 00:01:51]} 9. b3
{[%clk 01:33:16]} {[%emt 00:00:12]} O-O {[%clk 01:28:36]} {[%emt 00:00:16]} 10.
Bb2 {[%clk 01:33:40]} {[%emt 00:00:05]} a5 {[%clk 01:27:56]} {[%emt 00:01:11]}
11. a4 {[%clk 01:28:38]} {[%emt 00:05:31]} Re8 {[%clk 01:25:02]} {[%emt
00:03:24]} 12. Rac1 {[%clk 01:26:48]} {[%emt 00:02:19]} Qc7 {[%clk 01:19:02]}
{[%emt 00:06:31]} 13. Rfd1 {[%clk 01:25:45]} {[%emt 00:01:33]} Rad8 {[%clk
01:15:00]} {[%emt 00:04:33]} 14. Qc2 {[%clk 01:23:10]} {[%emt 00:03:03]} Nb8
{[%clk 01:09:21]} {[%emt 00:06:10]} 15. h3 {[%clk 01:22:40]} {[%emt 00:00:59]}
Na6 {[%clk 01:07:05]} {[%emt 00:02:48]} 16. Qb1 {[%clk 01:18:37]} {[%emt
00:04:31]} Nb4 {[%clk 01:05:05]} {[%emt 00:02:31]} 17. Re1 {[%clk 01:04:49]}
{[%emt 00:14:19]} h6 {[%clk 01:02:54]} {[%emt 00:02:41]} 18. Rcd1 {[%clk
01:01:39]} {[%emt 00:03:39]} dxc4 {[%clk 00:49:23]} {[%emt 00:14:02]} 19. Nxc4
{[%clk 01:00:21]} {[%emt 00:01:47]} b5 {[%clk 00:48:59]} {[%emt 00:00:54]} 20.
Nce5 {[%clk 00:57:20]} {[%emt 00:03:30]} Qb6 {[%clk 00:44:09]} {[%emt
00:05:20]} 21. Rc1 {[%clk 00:53:18]} {[%emt 00:04:32]} Rc8 {[%clk 00:40:56]}
{[%emt 00:03:44]} 22. g4 {[%clk 00:46:40]} {[%emt 00:07:08]} Nfd5 {[%clk
00:33:26]} {[%emt 00:07:59]} 23. h4 {[%clk 00:33:33]} {[%emt 00:13:37]} Bf8
{[%clk 00:25:32]} {[%emt 00:08:25]} 24. g5 {[%clk 00:32:08]} {[%emt 00:01:54]}
h5 {[%clk 00:20:04]} {[%emt 00:05:58]} 25. axb5 {[%clk 00:27:13]} {[%emt
00:05:25]} Qxb5 {[%clk 00:19:10]} {[%emt 00:01:24]} 26. Rc4 {[%clk 00:13:15]}
{[%emt 00:14:28]} g6 {[%clk 00:17:34]} {[%emt 00:02:06]} 27. Nxf7 {[%clk
00:13:07]} {[%emt 00:00:38]} Kxf7 {[%clk 00:16:25]} {[%emt 00:01:40]} 28. Ne5+
{[%clk 00:13:35]} {[%emt 00:00:01]} Ke7 {[%clk 00:16:10]} {[%emt 00:00:43]} 29.
Qxg6 {[%clk 00:13:42]} {[%emt 00:00:25]} Kd8 {[%clk 00:12:53]} {[%emt
00:03:43]} 30. e4 {[%clk 00:12:02]} {[%emt 00:02:12]} Kc7 {[%clk 00:09:39]}
{[%emt 00:03:42]} 31. exd5 {[%clk 00:09:38]} {[%emt 00:02:57]} Qxd5 {[%clk
00:08:41]} {[%emt 00:01:28]} 32. Rec1 {[%clk 00:05:16]} {[%emt 00:04:51]} Bd6
{[%clk 00:07:45]} {[%emt 00:01:26]} 33. Nxc6 {[%clk 00:03:27]} {[%emt
00:02:20]} Nxc6 {[%clk 00:07:53]} {[%emt 00:00:23]} 34. Rxc6+ {[%clk 00:03:50]}
{[%emt 00:00:06]} Qxc6 {[%clk 00:08:19]} {[%emt 00:00:04]} 35. Rxc6+ {[%clk
00:04:10]} {[%emt 00:00:10]} Kxc6 {[%clk 00:08:45]} {[%emt 00:00:05]} 36. Qxh5
{[%clk 00:04:32]} {[%emt 00:00:07]} Kd7 {[%clk 00:07:25]} {[%emt 00:01:51]} 37.
d5 {[%clk 00:01:48]} {[%emt 00:03:14]} exd5 {[%clk 00:05:23]} {[%emt 00:02:31]}
38. g6 {[%clk 00:02:09]} {[%emt 00:00:09]} Rg8 {[%clk 00:04:01]} {[%emt
00:01:52]} 39. g7 {[%clk 00:02:18]} {[%emt 00:00:20]} Kc6 {[%clk 00:04:03]}
{[%emt 00:00:29]} 40. Qg6 {[%clk 00:01:46]} {[%emt 00:01:01]} d4 {[%clk
00:02:50]} {[%emt 00:01:44]} 41. h5 {[%clk 00:00:59]} {[%emt 00:01:16]} Kd5
{[%clk 00:01:44]} {[%emt 00:01:38]} 42. Bxd4 {[%clk 00:01:11]} {[%emt
00:00:17]} Kxd4 {[%clk 00:29:17]} {[%emt 00:02:57]} 43. Qxd6+ {[%clk 00:31:32]}
{[%emt 00:00:09]} Kc3 {[%clk 00:29:34]} {[%emt 00:00:13]} 44. h6 {[%clk
00:31:53]} {[%emt 00:00:08]} Kxb3 {[%clk 00:29:58]} {[%emt 00:00:07]} 45. Qe6+
{[%clk 00:31:35]} {[%emt 00:00:48]} Kb4 {[%clk 00:30:14]} {[%emt 00:00:15]} 46.
Qxc8 {[%clk 00:31:56]} {[%emt 00:00:08]} Rxc8 {[%clk 00:29:32]} {[%emt
00:01:12]} 47. h7 {[%clk 00:32:20]} {[%emt 00:00:06]} 1-0

[Event "Masterklassen-Elit 2025"]
[Site "Uppsala, Sweden"]
[Date "2025.06.29"]
[Round "2.3"]
[White "Ostlund, Joar"]
[Black "Thorn, Eric"]
[Result "1-0"]
[TimeControl "90 min for 40 move + 30 min with an increment of 30 sec starting move 1"]
[WhiteTitle "FM"]
[BlackTitle "FM"]
[WhiteFideId "1735020"]
[BlackFideId "1710729"]
[WhiteElo "2322"]
[BlackElo "2357"]

1. d4 {[%clk 01:26:08]} {[%emt 00:04:52]} Nf6 {[%clk 01:30:50]} {[%emt
00:00:10]} 2. c4 {[%clk 01:26:27]} {[%emt 00:00:11]} e6 {[%clk 01:31:15]}
{[%emt 00:00:04]} 3. Nf3 {[%clk 01:26:50]} {[%emt 00:00:08]} d5 {[%clk
01:31:34]} {[%emt 00:00:12]} 4. Nc3 {[%clk 01:27:09]} {[%emt 00:00:10]} Nbd7
{[%clk 01:31:53]} {[%emt 00:00:11]} 5. Bg5 {[%clk 01:26:59]} {[%emt 00:00:41]}
Be7 {[%clk 01:31:23]} {[%emt 00:00:59]} 6. cxd5 {[%clk 01:26:40]} {[%emt
00:00:49]} exd5 {[%clk 01:29:39]} {[%emt 00:02:14]} 7. e3 {[%clk 01:26:44]}
{[%emt 00:00:25]} c6 {[%clk 01:25:53]} {[%emt 00:04:17]} 8. Bd3 {[%clk
01:23:04]} {[%emt 00:04:10]} h6 {[%clk 01:22:28]} {[%emt 00:03:55]} 9. Bf4
{[%clk 01:21:01]} {[%emt 00:02:34]} Nb6 {[%clk 01:03:34]} {[%emt 00:19:24]} 10.
h3 {[%clk 01:14:11]} {[%emt 00:07:18]} Bd6 {[%clk 01:02:45]} {[%emt 00:01:20]}
11. Bxd6 {[%clk 01:11:49]} {[%emt 00:02:52]} Qxd6 {[%clk 01:03:03]} {[%emt
00:00:13]} 12. O-O {[%clk 01:11:59]} {[%emt 00:00:18]} Be6 {[%clk 00:59:40]}
{[%emt 00:03:54]} 13. Ne5 {[%clk 01:04:42]} {[%emt 00:07:47]} Nfd7 {[%clk
00:41:29]} {[%emt 00:18:41]} 14. f4 {[%clk 01:00:21]} {[%emt 00:04:51]} Nxe5
{[%clk 00:37:26]} {[%emt 00:04:34]} 15. fxe5 {[%clk 00:57:02]} {[%emt
00:03:48]} Qe7 {[%clk 00:37:43]} {[%emt 00:00:13]} 16. a4 {[%clk 00:49:42]}
{[%emt 00:07:49]} Nd7 {[%clk 00:26:39]} {[%emt 00:11:35]} 17. a5 {[%clk
00:38:01]} {[%emt 00:12:11]} O-O {[%clk 00:24:40]} {[%emt 00:02:29]} 18. Bc2
{[%clk 00:37:29]} {[%emt 00:01:02]} Qg5 {[%clk 00:21:07]} {[%emt 00:04:03]} 19.
Rf3 {[%clk 00:36:54]} {[%emt 00:01:05]} f6 {[%clk 00:18:29]} {[%emt 00:03:08]}
20. Qd3 {[%clk 00:36:29]} {[%emt 00:00:55]} f5 {[%clk 00:18:05]} {[%emt
00:00:55]} 21. Ne2 {[%clk 00:35:52]} {[%emt 00:01:06]} c5 {[%clk 00:14:28]}
{[%emt 00:04:08]} 22. Nf4 {[%clk 00:35:05]} {[%emt 00:01:17]} Rae8 {[%clk
00:11:09]} {[%emt 00:03:48]} 23. Raf1 {[%clk 00:28:57]} {[%emt 00:06:38]} c4
{[%clk 00:08:38]} {[%emt 00:03:01]} 24. Qa3 {[%clk 00:28:39]} {[%emt 00:00:48]}
Bf7 {[%clk 00:05:31]} {[%emt 00:03:37]} 25. Qd6 {[%clk 00:26:41]} {[%emt
00:02:28]} Qe7 {[%clk 00:04:12]} {[%emt 00:01:50]} 26. Qxe7 {[%clk 00:26:58]}
{[%emt 00:00:13]} Rxe7 {[%clk 00:04:37]} {[%emt 00:00:05]} 27. Bxf5 {[%clk
00:27:17]} {[%emt 00:00:10]} g5 {[%clk 00:03:39]} {[%emt 00:01:28]} 28. Ne2
{[%clk 00:18:43]} {[%emt 00:09:03]} Rd8 {[%clk 00:02:44]} {[%emt 00:01:25]} 29.
Bxd7 {[%clk 00:18:28]} {[%emt 00:00:46]} Rdxd7 {[%clk 00:02:02]} {[%emt
00:01:11]} 30. Rf6 {[%clk 00:18:47]} {[%emt 00:00:10]} Kg7 {[%clk 00:01:54]}
{[%emt 00:00:39]} 31. Nc3 {[%clk 00:16:01]} {[%emt 00:03:16]} Bg6 {[%clk
00:02:01]} {[%emt 00:00:23]} 32. Nb5 {[%clk 00:15:36]} {[%emt 00:00:55]} Rd8
{[%clk 00:01:38]} {[%emt 00:00:54]} 33. g4 {[%clk 00:13:18]} {[%emt 00:02:47]}
Bd3 {[%clk 00:00:37]} {[%emt 00:01:31]} 34. R1f2 {[%clk 00:13:30]} {[%emt
00:00:17]} h5 {[%clk 00:00:46]} {[%emt 00:00:22]} 35. Nd6 {[%clk 00:13:39]}
{[%emt 00:00:22]} hxg4 {[%clk 00:00:43]} {[%emt 00:00:33]} 36. hxg4 {[%clk
00:14:06]} {[%emt 00:00:02]} Rc7 {[%clk 00:00:35]} {[%emt 00:00:39]} 37. Nf5+
{[%clk 00:09:09]} {[%emt 00:05:26]} Kg8 {[%clk 00:00:42]} {[%emt 00:00:23]} 38.
Rg6+ {[%clk 00:09:23]} {[%emt 00:00:17]} Kh8 {[%clk 00:00:32]} {[%emt
00:00:40]} 39. Rxg5 {[%clk 00:08:18]} {[%emt 00:01:34]} b5 {[%clk 00:00:49]}
{[%emt 00:00:13]} 40. axb6 {[%clk 00:02:25]} {[%emt 00:06:24]} axb6 {[%clk
00:01:13]} {[%emt 00:00:06]} 41. Rh2+ {[%clk 00:01:45]} {[%emt 00:01:10]} Rh7
{[%clk 00:01:30]} {[%emt 00:00:13]} 42. Rxh7+ {[%clk 00:01:16]} {[%emt
00:00:59]} Kxh7 {[%clk 00:01:55]} {[%emt 00:00:05]} 43. Rg7+ {[%clk 00:00:49]}
{[%emt 00:00:57]} Kh8 {[%clk 00:02:20]} {[%emt 00:00:05]} 44. Rf7 {[%clk
00:26:24]} {[%emt 00:04:56]} Rg8 {[%clk 00:31:29]} {[%emt 00:01:21]} 45. e6
{[%clk 00:20:48]} {[%emt 00:06:06]} Bxf5 {[%clk 00:27:11]} {[%emt 00:04:47]} 46.
Rxf5 {[%clk 00:20:46]} {[%emt 00:00:32]} Rxg4+ {[%clk 00:27:35]} {[%emt
00:00:06]} 47. Kf2 {[%clk 00:21:09]} {[%emt 00:00:06]} Re4 {[%clk 00:28:01]}
{[%emt 00:00:04]} 48. Rxd5 {[%clk 00:21:05]} {[%emt 00:00:35]} Rxe6 {[%clk
00:28:26]} {[%emt 00:00:05]} 49. Rb5 {[%clk 00:19:11]} {[%emt 00:02:23]} Kg7
{[%clk 00:28:32]} {[%emt 00:00:25]} 50. Rb4 {[%clk 00:18:19]} {[%emt 00:01:23]}
Rc6 {[%clk 00:28:44]} {[%emt 00:00:18]} 51. d5 {[%clk 00:18:08]} {[%emt
00:00:41]} Rd6 {[%clk 00:26:13]} {[%emt 00:03:00]} 52. e4 {[%clk 00:18:30]}
{[%emt 00:00:07]} Kf6 {[%clk 00:26:39]} {[%emt 00:00:05]} 53. Rxc4 {[%clk
00:18:44]} {[%emt 00:00:17]} Ke5 {[%clk 00:27:04]} {[%emt 00:00:04]} 54. Rc6
{[%clk 00:18:28]} {[%emt 00:00:46]} Rd8 {[%clk 00:27:14]} {[%emt 00:00:21]} 55.
Ke3 {[%clk 00:18:45]} {[%emt 00:00:12]} 1-0